Workbook

Sheet 5510 SONRASI(istifa)
C1: YERSİZ VE FAZLA ÖDENEN AYLIKLARDAN DOĞAN
C2: KİŞİLERDEN ALACAKLARI HESAPLAMA CETVELİ 5510 SONRASI
C4: Tahakkuk Birimi | F4: Borç Nedeni | G4: Askere Sevk
C5: Borçlunun Adı Soyadı | F5: Hizmet Süresi | G5: 1 Ay
C6: Sicil Nosu | F6: İlişki Kesilme t | G6: 2013-11-05
C7: Unvanı | F7: TEL.
C8: Ödenen Gün | D8: 30 | F8: Ödenecek Gün | G8: 20
C10: TABLO 1 : AYLIK VE YAN ÖDEMELER
C11: AYLIK UNSURLARI | D11: TAHAKKUK ETTİRİLEN (A) | F11: TAHAKKUK ETTİRİLMESİ GEREKEN (B) | H11: FARK (C)
C12: Aylık | D12: 51.83 | F12: =(D12/D8)*G8 -> 34.55333333 | I12: =D12-F12 -> 17.27666667
C13: Taban Aylığı | D13: 1027.5 | F13: =(D13/D8)*G8 -> 685 | I13: =D13-F13 -> 342.5
C14: Kıdem Aylığı | D14: 0 | F14: =(D14/D8)*G8 -> 0 | I14: =D14-F14 -> 0
C15: Ek Gösterge | D15: 0 | F15: =(D15/D8)*G8 -> 0 | I15: 0
C16: Özel Hizmet Tazminatı | D16: 663.86 | F16: =(D16/D8)*G8 -> 442.5733333 | I16: 221.2866667
C17: Sendika ödeneği | D17: 45 | F17: =(D17/D8)*G8 -> 30 | I17: 15
C18: Aile ve Çocuk Yardımı* | D18: 0 | F18: =(D18) -> 0 | I18: 0
C19: Makam Tazminatı | D19: 0 | F19: =(D19/D8)*G8 -> 0 | I19: 0
C20: Dil Tazminatı | D20: 0 | F20: =(D20/D8)*G8 -> 0 | I20: 0
C21: Yan Ödeme | D21: 12.18 | F21: =(D21/D8*G8) -> 8.12 | I21: 4.06
C22: İdari Görev Ö. | D22: 0 | F22: =(D22/D8)*G8 -> 0 | I22: 0
C23: Ek Ödeme | D23: 474.18 | F23: =(D23/D8)*G8 -> 316.12 | I23: 158.06
C24: Eğitim Öğretim Ödeneği | D24: 0 | F24: =(D24/D8)*G8 -> 0 | I24: 0
C25: Gelişme Güçlüğü (*) | D25: 0 | F25: =(D25) -> 0 | I25: 0
C26: Üniversite Ödeneği | D26: 0 | F26: =(D26/D8)*G8 -> 0 | I26: 0
C27: TOPLAM | D27: =SUM(D12:D26) -> 2274.55 | F27: =SUM(F12:F26) -> 1516.366667 | H27: (1) | I27: =SUM(I12:I26) -> 758.1833333
C29: TABLO 2 : KESİNTİ YAPILAN KATKI PAYLARI
C30: AYLIK UNSURLARI | D30: FİİLEN ÖDENEN (A) | F30: HAK EDİLEN (B) | H30: FARK (C)
C31: Mal. yaş.ve Em. Prim %11 Dev. | D31: 191.75 | F31: =D31/30*G8 -> 127.8333333 | I31: =D31-F31 -> 63.91666667
C32: Genel sağlık sig. %7,5 Dev. | D32: 130.74 | F32: =D32/30*G8 -> 87.16 | I32: =D32-F32 -> 43.58
C33: TOPLAM | D33: =SUM(D31:D32) -> 322.49 | F33: =SUM(F31:F32) -> 214.9933333 | H33: (2)** | I33: =SUM(I31:I32) -> 107.4966667
C34: Hakediş Toplamı | D34: =(D27+D33) -> 2597.04
C36: TABLO 3 : YASAL KESİNTİLER
C37: AYLIK UNSURLARI | D37: FİİLEN KESİLEN (A) | F37: KESİLMESİ GEREKEN (B) | H37: FARK (C)
C38: Gelir Vergisi | D38: 93.82 | F38: =(D38/D8)*G8 -> 62.54666667 | I38: =(D38-F38) -> 31.27333333
C39: Damga Vergisi | D39: 17.26 | F39: =(D39/D8)*G8 -> 11.50666667 | I39: =(D39-F39) -> 5.753333333
C40: Mal. yaş.ve Em. Prim %9 Kişi | D40: 156.89 | F40: =D40 -> 156.89 | I40: =D40-F40 -> 0
C41: Genel sağlık sig. %5 Kişi | D41: 87.16 | F41: =D41 -> 87.16 | I41: =D41-F41 -> 0
C42: Mal. yaş.ve Em. Prim %11 Dev. | D42: =(D31) -> 191.75 | F42: =D42/30*G8 -> 127.8333333 | I42: =D42-F42 -> 63.91666667
C43: Genel sağlık sig. %7,5 Dev. | D43: =(D32) -> 130.74 | F43: =D43/30*G8 -> 87.16 | I43: =D43-F43 -> 43.58
C45: TOPLAM | D45: =SUM(D38:D44) -> 677.62 | F45: =SUM(F38:F44) -> 533.0966667 | H45: (3) | I45: =SUM(I38:I44) -> 144.5233333
C47: 140 NOLU HESAP | F47: =(I27+I33) -> 865.68
C48: KİŞİDEN ALINACAK TUTAR | I48: =I27+I33-I38-I39 -> 828.6533333
D54: Harcama Yetkilisi
C55: Adı ve Soyadı :
C56: Unvanı :
C57: Tebliğ Tarih :
C58: İmza :

Sheet 5510 SONRASI (Ücretsiz İzin.)
C1: YERSİZ VE FAZLA ÖDENEN AYLIKLARDAN DOĞAN
C2: KİŞİLERDEN ALACAKLARI HESAPLAMA CETVELİ 5510 SONRASI
C4: Tahakkuk Birimi | F4: Borç Nedeni | G4: ücretsiz izin
C5: Borçlunun Adı Soyadı | F5: Hizmet Süresi
C6: Sicil Nosu | F6: Adres ve Tlf.
C7: Unvanı | F7: TEL.
C8: Ödenen Gün | D8: 30 | F8: Ödenecek Gün | G8: 3
C10: TABLO 1 : AYLIK VE YAN ÖDEMELER
C11: AYLIK UNSURLARI | D11: TAHAKKUK ETTİRİLEN (A) | F11: TAHAKKUK ETTİRİLMESİ GEREKEN (B) | H11: FARK (C)
C12: Aylık | D12: 76 | F12: =(D12/D8)*G8 -> 7.6 | I12: =D12-F12 -> 68.4
C13: Taban Aylığı | D13: 1607.65 | F13: =(D13/D8)*G8 -> 160.765 | I13: =D13-F13 -> 1446.885
C14: Kıdem Aylığı | D14: 12.32 | F14: =(D14/D8)*G8 -> 1.232 | I14: =D14-F14 -> 11.088
C15: Ek Gösterge | D15: 51.35 | F15: =(D15/D8)*G8 -> 5.135 | I15: 46.215
C16: Özel Hizmet Tazminatı | D16: 1029.96 | F16: =(D16/D8)*G8 -> 102.996 | I16: 926.964
C17: Sendika ödeneği | D17: 0 | F17: =(D17) -> 0 | I17: 0
C18: Aile ve Çocuk Yardımı* | D18: 0 | F18: =(D18) -> 0 | I18: 0
C19: Makam Tazminatı | D19: 0 | F19: =(D19/D8)*G8 -> 0 | I19: 0
C20: Dil Tazminatı | D20: 0 | F20: =(D20/D8)*G8 -> 0 | I20: 0
C21: Yan Ödeme | D21: 24.43 | F21: =(D21/D8)*G8 -> 2.443 | I21: 21.987
C22: İdari Görev Ödeneği | D22: 0 | F22: =(D22/D8)*G8 -> 0 | I22: 0
C23: Ek Ödeme | D23: 634.21 | F23: =(D23/D8)*G8 -> 63.421 | I23: 570.789
C24: Eğitim Öğretim Ödeneği | D24: 0 | F24: =(D24/D8)*G8 -> 0 | I24: 0
C25: Gelişme Güçlüğü (*) | D25: 0 | F25: =(D25) -> 0 | I25: 0
C26: Üniversite Ödeneği | D26: 0 | F26: =(D26/D8)*G8 -> 0 | I26: 0
C27: TOPLAM | D27: =SUM(D12:D26) -> 3435.92 | F27: =SUM(F12:F26) -> 343.592 | H27: (1) | I27: =SUM(I12:I26) -> 3092.328
C29: TABLO 2 : KESİNTİ YAPILAN KATKI PAYLARI
C30: AYLIK UNSURLARI | D30: FİİLEN ÖDENEN (A) | F30: HAK EDİLEN (B) | H30: FARK (C)
C31: İsver MYO.11 | D31: 305.5 | F31: =D31/30*G8 -> 30.55 | I31: =D31-F31 -> 274.95
C32: İsver MYO.7,5 | D32: 208.3 | F32: =D32/30*G8 -> 20.83 | I32: =D32-F32 -> 187.47
C33: TOPLAM | D33: =SUM(D31:D32) -> 513.8 | F33: =SUM(F31:F32) -> 51.38 | H33: (2)** | I33: =SUM(I31:I32) -> 462.42
C34: Hakediş Toplamı | D34: =(D27+D33) -> 3949.72
C36: TABLO 3 : YASAL KESİNTİLER
C37: AYLIK UNSURLARI | D37: FİİLEN KESİLEN (A) | F37: KESİLMESİ GEREKEN (B) | H37: FARK (C)
C38: Gelir Vergisi | D38: 74.13 | F38: =(D38/D8)*G8 -> 7.413 | I38: =(D38-F38) -> 66.717
C39: Damga Vergisi | D39: 26.08 | F39: =(D39/D8)*G8 -> 2.608 | I39: =(D39-F39) -> 23.472
C40: Ücretli MYO.9 | D40: 249.96 | F40: =D40/30*G8 -> 24.996 | I40: =D40-F40 -> 224.964
C41: Ücretli MYO.5 | D41: 138.86 | F41: =(D41) -> 138.86 | I41: =D41-F41 -> 0
C42: İsver MYO.11 | D42: =(D31) -> 305.5 | F42: =D42/30*G8 -> 30.55 | I42: =D42-F42 -> 274.95
C43: İsver MYO.7,5 | D43: 208.3 | F43: =(D43) -> 208.3 | I43: =D43-F43 -> 0
C45: TOPLAM | D45: =SUM(D38:D44) -> 1002.83 | F45: =SUM(F38:F44) -> 412.727 | H45: (3) | I45: =SUM(I38:I44) -> 590.103
C47: 140 NOLU HESAP | F47: =(I27+I33) -> 3554.748
C48: KİŞİDEN ALINACAK TUTAR | I48: =I27+I33-I38-I39-I40-I42 -> 2964.645
D54: Gerçekleştrime Görevlisi | G54: Borçlu
C55: Adı ve Soyadı :
C56: Unvanı :
C57: Tebliğ Tarih :
C58: İmza :

Sheet 5510 ÖNCESİ
D1: YERSİZ VE FAZLA ÖDENEN AYLIKLARDAN DOĞAN
D2: KİŞİLERDEN ALACAKLARI HESAPLAMA CETVELİ 5510 ÖNCESİ
D4: Tahakkuk Birimi | G4: Borç Nedeni | H4: ÜCRETSİZ İZİN
D5: Borçlunun Adı Soyadı | G5: Hizmet Süresi | H5: 11
D6: Sicil Nosu | G6: İlişki Kesilme T | H6: 2017-10-30
D7: Unvanı | G7: TEL.
D8: Ödenen Gün | E8: 31 | G8: Ödenecek Gün | H8: 16
D10: TABLO 1 : AYLIK VE YAN ÖDEMELER
D11: AYLIK UNSURLARI | E11: TAHAKKUK ETTİRİLEN (A) | G11: TAHAKKUK ETTİRİLMESİ GEREKEN (B) | I11: FARK (C)
D12: Aylık | E12: 109.38 | G12: =(E12/E8)*H8 -> 56.45419355 | J12: =E12-G12 -> 52.92580645
D13: Taban Aylığı | E13: 1607.65 | G13: =(E13/E8)*H8 -> 829.7548387 | J13: =E13-G13 -> 777.8951613
D14: Kıdem Aylığı | E14: 22.6 | G14: =(E14/E8)*H8 -> 11.66451613 | J14: =E14-G14 -> 10.93548387
D15: Ek Gösterge | E15: 164.33 | G15: =(E15/E8)*H8 -> 84.81548387 | J15: 79.51451613
D16: Özel Hizmet Tazminatı | E16: 926.92 | G16: =(E16/E8)*H8 -> 478.4103226 | J16: 448.5096774
D17: Sendika ödeneği * | E17: 77.03 | G17: =(E17) -> 77.03 | J17: 0
D18: Aile ve Çocuk Yardımı* | E18: 219.17 | G18: =SUM(E18) -> 219.17 | J18: 0
D19: Çocuk Yardımı | E19: 179.74 | G19: =SUM(E19) -> 179.74 | J19: 0
D20: Dil Tazminatı | E20: 0 | G20: =(E20/E8)*H8 -> 0 | J20: 0
D21: Yan Ödeme | E21: 16.29 | G21: =(E21/E8)*H8 -> 8.407741935 | J21: 7.882258065
D22: İdari Görev Ö | E22: 0 | G22: =(E22/E8)*H8 -> 0
D23: Ek ödeme | E23: 634.21 | G23: =(E23/E8)*H8 -> 327.3341935 | J23: 306.8758065
D24: Eğitim Öğretim Ödeneği | E24: 0 | G24: =(E24/E8)*H8 -> 0 | J24: 0
D25: Gelişme Güçlüğü (*) | E25: 0 | J25: 0
D26: Üniversite Ödeneği | E26: 0 | G26: =(E26/E8)*H8 -> 0 | J26: 0
D27: TOPLAM | E27: =SUM(E12:E26) -> 3957.32 | G27: =SUM(G12:G26) -> 2272.78129 | I27: (1) | J27: =SUM(J12:J26) -> 1684.53871
D29: TABLO 2 : KESİNTİ YAPILAN KATKI PAYLARI
D30: AYLIK UNSURLARI | E30: FİİLEN ÖDENEN (A) | G30: HAK EDİLEN (B) | I30: FARK (C)
D31: Emekli Keseneği %20 | E31: 488.12 | J31: =E31-G31 -> 488.12
D32: Genel Sağlık S.% 12 | E32: 292.87 | J32: =E32-G32 -> 292.87
D33: TOPLAM | E33: =SUM(E31:E32) -> 780.99 | G33: =SUM(G31:G32) -> 0 | I33: (2)** | J33: =SUM(J31:J32) -> 780.99
D34: Hakediş Toplamı | E34: =(E27+E33) -> 4738.31
D35: TABLO 3 : YASAL KESİNTİLER
D36: AYLIK UNSURLARI | E36: FİİLEN KESİLEN (A) | G36: KESİLMESİ GEREKEN (B) | I36: FARK (C)
D37: Gelir Vergisi | E37: 75.76 | G37: =(E37/E8)*H8 -> 39.10193548 | J37: =(E37-G37) -> 36.65806452
D38: Damga Vergisi | E38: 27.01 | G38: =(E38/E8)*H8 -> 13.94064516 | J38: =(E38-G38) -> 13.06935484
D44: TOPLAM | E44: =SUM(E37:E43) -> 102.77 | G44: =SUM(G37:G43) -> 53.04258065 | I44: (3) | J44: =SUM(J37:J43) -> 49.72741935
D46: 5434-87.m. Eğer Hizmet Süresi 5 yıldan fazla ise (1)+(2)
D47: Eğer Hizmet Süresi 5 yıldan az ise (1)
D49: 140 Nolu Hesaba alınacak | G49: =IF(H5>10,J27,IF(H5<=5,J27,J27+J33)) -> 1684.53871
D50: KİŞİDEN ALINACAK TUTAR | J50: =IF(H5>10,J27-J44,IF(H5<=5,J27-J44,J27+J33-J44)) -> 1634.81129
E56: HARCAMA YETKİLİSİ | H56: BORÇLU
D57: Adı ve Soyadı :
D58: Unvanı :
D59: Tebliğ Tarih :
D60: İmza :
